bitfinex/quotes_ETHUSD_20250616
["timestamp","ask_amount","ask_price","bid_price","bid_amount"]
[1750060374643,6.29515063,2631.4,2631.0,0.7771]
[1750060374850,0.1896,2631.3,2631.1,3.80061352]
[1750060375043,0.1896,2631.3,2631.2,3.80054727]
[1750060376015,0.1896,2631.3,2631.0,3.80077952]
[1750060376234,0.1896,2631.3,2631.2,3.80054727]
[1750060376947,0.1896,2631.3,2631.0,3.8007036]
[1750060377105,6.29515063,2631.1,2631.0,3.8007036]
[1750060377708,6.29515063,2631.1,2630.8,3.80105744]
[1750060377909,6.29515063,2630.9,2630.8,3.80105744]
[1750060379115,6.29515063,2630.9,2630.5,3.99111914]
[1750060379449,6.48475063,2630.9,2630.6,3.80134143]
[1750060379654,6.48475063,2630.9,2630.7,3.80124801]
[1750060380441,7.39652705,2630.9,2630.7,3.80119749]
[1750060380658,6.48475063,2630.9,2630.7,3.80119749]
[1750060381262,10.79,2630.8,2630.4,3.99121052]
[1750060381432,6.48475063,2630.5,2630.4,3.80161052]
[1750060382657,6.48475063,2630.5,2630.0,0.1896]
[1750060382836,6.48475063,2630.5,2630.1,3.80211764]
[1750060383256,6.48475063,2630.5,2630.3,3.80183039]
[1750060384247,0.7858,2630.4,2630.0,0.1896]
[1750060384425,6.29515063,2630.2,2630.1,3.80205313]
[1750060384632,0.1896,2630.1,2629.8,3.80257053]
[1750060385038,0.1896,2630.1,2629.9,3.80242594]
[1750060385534,0.1896,2630.1,2629.8,3.80257053]
[1750060385535,6.29515063,2630.0,2629.8,3.80253399]
[1750060386279,6.29515063,2630.0,2629.8,3.8024423]
[1750060386436,10.0,2629.9,2629.6,0.4201]
[1750060386639,0.1896,2629.7,2629.6,0.4201]
[1750060386835,0.1896,2629.7,2629.6,4.22295975]
[1750060387054,0.56635533,2629.7,2629.6,4.22295975]
[1750060387274,0.1896,2629.7,2629.6,4.22295975]
[1750060388448,0.1896,2629.7,2629.6,0.4201]
[1750060390182,1.0155,2629.7,2629.6,0.4201]
[1750060390638,11.39521743,2629.7,2629.6,0.4201]
[1750060393742,11.39521743,2629.7,2629.6,4.22295975]
[1750060394385,11.39521743,2629.7,2629.6,0.4201]
[1750060397957,10.56931743,2629.7,2629.6,0.4201]
[1750060398164,10.56931743,2629.7,2629.6,4.22295975]
[1750060407851,10.56931743,2629.7,2629.6,0.4201]
[1750060408052,10.56931743,2629.7,2629.6,4.22295975]
[1750060409496,11.38201743,2629.7,2629.6,4.22295975]
[1750060409665,11.38201743,2629.7,2629.6,0.4201]
[1750060409992,17.63801743,2629.7,2629.6,0.4201]
[1750060410399,23.93316806,2629.7,2629.6,4.22295975]
[1750060410696,23.93316806,2629.7,2629.6,0.4201]
[1750060410880,17.67716806,2629.7,2629.6,0.4201]
[1750060412196,18.58740127,2629.7,2629.6,0.4201]
[1750060413899,6.29515063,2630.2,2629.9,3.80234119]
[1750060414065,10.91044226,2630.1,2630.0,3.8022692]
[1750060415313,11.12433398,2630.1,2629.6,1.1901]
[1750060415608,6.29515063,2629.9,2629.8,3.80245791]
[1750060415808,7.20559289,2629.9,2629.8,3.80245791]
[1750060416137,6.66828324,2629.9,2629.8,3.80245791]
[1750060416271,7.5787255,2629.9,2629.8,3.80245791]
[1750060416606,6.66828324,2629.9,2629.8,3.80245791]
[1750060416809,7.5787255,2629.9,2629.8,3.80245791]
[1750060417102,6.66828324,2629.9,2629.8,3.80245791]
[1750060417303,7.5787255,2629.9,2629.8,3.80245791]
[1750060417465,6.66828324,2629.9,2629.8,3.80245791]
[1750060417670,7.5787255,2629.9,2629.8,3.80245791]
[1750060417871,6.66828324,2629.9,2629.8,3.80245791]
[1750060418071,7.5787255,2629.9,2629.8,3.80245791]
[1750060418271,6.66828324,2629.9,2629.8,3.80245791]
[1750060418574,7.5787255,2629.9,2629.8,3.80245791]
[1750060418774,6.66828324,2629.9,2629.8,3.80245791]
[1750060419001,7.5787255,2629.9,2629.8,3.80245791]
[1750060419200,6.66828324,2629.9,2629.8,3.80245791]
[1750060419804,0.37313261,2629.9,2629.8,3.80245791]
[1750060419984,10.91044226,2630.0,2629.9,3.80242594]
[1750060421197,10.0,2630.0,2629.9,3.80242594]
[1750060422004,11.66140185,2630.0,2629.7,3.80265844]
[1750060422310,6.29515063,2629.8,2629.7,3.80265844]
[1750060427006,0.56163689,2629.9,2629.8,3.80257053]
[1750060428913,0.8038,2630.5,2629.9,3.80240521]
[1750060429075,0.8038,2630.5,2630.4,3.80170316]
[1750060429076,0.38706165,2630.5,2630.4,3.80170316]
[1750060429410,0.1896,2630.4,2630.3,3.80176998]
[1750060429605,1.1004367,2630.4,2630.3,3.80176998]
[1750060429782,1.1004367,2630.4,2630.2,3.80186343]
[1750060429990,10.0,2630.3,2630.2,3.80186343]
[1750060430499,0.1896,2630.4,2630.3,3.80184769]
[1750060430809,6.48475063,2630.6,2630.3,3.80184769]
[1750060430988,10.0,2630.5,2630.4,3.80170316]
[1750060431189,11.29858039,2630.5,2630.4,3.80170316]
[1750060433627,11.29858039,2630.5,2630.3,3.80175953]
[1750060433826,6.48475063,2630.4,2630.3,3.80175953]
[1750060438744,6.48475063,2630.4,2630.2,3.80192962]
[1750060438895,6.48475063,2630.4,2630.3,3.80184769]
[1750060439097,6.48475063,2630.4,2630.2,3.80191929]
[1750060439296,6.48475063,2630.4,2630.1,3.80204207]
[1750060439497,6.48475063,2630.4,2630.2,3.8019727]
[1750060439698,7.28165063,2630.4,2630.1,3.80206428]
[1750060439945,6.29515063,2630.2,2630.1,3.80206428]
[1750060440240,0.1896,2630.4,2630.1,3.80206428]
[1750060440546,6.29515063,2630.3,2630.2,3.8019919]
[1750060442342,6.29515063,2630.3,2630.1,3.80206223]
[1750060442501,6.29515063,2630.3,2630.2,3.80199224]
[1750060443807,6.29515063,2630.3,2630.1,3.80206419]
[1750060444207,6.29515063,2630.3,2630.2,3.80199224]
[1750060444427,6.29515063,2630.3,2630.1,3.80206831]
[1750060444714,6.48475063,2630.3,2630.1,3.80206831]
[1750060445043,8.2629605,2630.3,2630.1,3.80206831]
[1750060445355,0.1896,2630.6,2630.5,3.80155863]
[1750060446643,16.29515063,2630.9,2630.8,3.80112513]
[1750060447615,10.0,2631.0,2630.8,3.80112513]
[1750060447839,6.29515063,2630.9,2630.8,3.80112513]
[1750060449121,10.1896,2631.0,2630.9,3.80098065]
[1750060449322,10.1896,2631.0,2630.8,3.80105179]
[1750060449539,10.1896,2631.0,2630.9,3.80098065]
[1750060450348,10.1896,2631.0,2630.8,3.8011156]
[1750060450536,16.29515063,2630.9,2630.8,3.8011156]
[1750060451854,16.29515063,2630.9,2630.7,3.80119236]
[1750060452029,16.29515063,2630.9,2630.8,3.80112513]
[1750060453325,10.0,2630.9,2630.8,3.80112513]
[1750060454746,0.57894597,2631.0,2630.9,3.80098065]
[1750060458959,0.1896,2631.0,2630.9,3.80098065]
[1750060459859,0.1896,2631.0,2630.9,4.56558065]
[1750060462536,0.1896,2631.0,2630.9,3.80098065]
[1750060466093,6.48475063,2631.0,2630.9,3.80098065]
[1750060469783,0.1896,2631.0,2630.9,3.80098065]
[1750060471179,10.0,2631.2,2631.1,3.80069172]
[1750060471367,10.91022072,2631.4,2631.3,3.80040284]
[1750060471548,7.0611,2631.5,2631.3,3.80040284]
[1750060471879,10.0,2631.4,2631.3,3.80040284]
[1750060472078,10.91022072,2631.4,2631.3,3.80040284]
[1750060474885,10.91022072,2631.4,2629.7,3.98772814]
[1750060474886,0.55,2630.5,2629.6,0.4201]
[1750060475179,6.249,2630.7,2630.0,0.8189]
[1750060475366,7.15922072,2630.7,2630.5,3.80144838]
[1750060475552,0.91022072,2630.8,2630.7,3.80126962]
[1750060475753,0.1896,2630.9,2630.7,3.80116349]
[1750060475959,0.1896,2630.9,2630.8,3.80112513]
[1750060480203,0.1896,2630.9,2630.7,3.80120258]
[1750060480500,0.1896,2630.9,2630.8,3.80112513]
[1750060480858,0.1896,2631.3,2631.1,3.8006546]
[1750060481219,0.21383642,2631.2,2631.1,3.8006546]
[1750060481787,7.39497135,2631.3,2631.1,3.8006546]
[1750060482285,7.39497135,2631.3,2631.0,3.8007383]
[1750060482473,7.39497135,2631.3,2631.1,3.80060911]
[1750060483678,17.39497135,2631.3,2631.2,3.80054727]
[1750060483871,11.09982072,2631.3,2631.2,3.80054727]
[1750060484066,1.09982072,2631.3,2631.2,3.80054727]
[1750060484271,0.91022072,2631.4,2631.3,3.80040284]
[1750060484609,0.38576717,2631.5,2631.3,3.80040284]
[1750060484610,7.39497135,2631.5,2631.3,3.80040284]
[1750060485306,17.39497135,2631.5,2631.4,3.80025841]
[1750060485806,17.39497135,2631.5,2631.3,3.8003312]
[1750060485994,0.91022072,2631.4,2631.3,3.8003312]
[1750060487224,16.48475063,2631.5,2631.3,3.8003312]
[1750060487381,0.91133243,2631.4,2631.3,3.8003312]
[1750060487711,16.86441076,2631.5,2631.3,3.8003312]
[1750060488564,0.9113881,2631.4,2631.3,3.8003312]
[1750060488769,16.86441076,2631.5,2631.3,3.8003312]
[1750060489070,16.86441076,2631.5,2631.3,3.80034432]
[1750060489799,6.86441076,2631.5,2631.4,3.80025841]
[1750060490373,0.91120868,2631.8,2631.6,3.7999696]
[1750060490595,0.1896,2631.7,2631.6,3.7999696]
[1750060491512,6.48475063,2631.7,2631.6,3.7999696]
[1750060492111,0.1896,2631.7,2631.6,3.7999696]
[1750060496609,0.0185,2631.9,2631.6,3.7999696]
[1750060496610,0.0185,2631.9,2631.8,3.79968082]
[1750060502981,6.31365063,2631.9,2631.8,3.79968082]
[1750060508802,6.31365063,2631.9,2631.7,3.79972446]
[1750060509222,6.96397569,2631.9,2631.5,0.1896]
[1750060509546,6.96397569,2631.9,2631.6,3.79989654]
[1750060509547,0.9655,2631.8,2631.6,3.79989654]
[1750060509708,6.29515063,2631.7,2631.6,3.79989654]
[1750060510844,0.7759,2631.6,2630.8,0.7831]
[1750060510998,0.1896,2631.5,2631.4,3.80018496]
[1750060511205,7.58130063,2631.5,2631.4,3.80018496]
[1750060512203,6.48475063,2631.5,2631.4,3.80018496]
[1750060513859,6.48475063,2631.5,2631.2,3.80047693]
[1750060514146,6.48475063,2631.3,2631.2,3.80047693]
[1750060515910,0.1896,2631.3,2631.2,3.80047693]
[1750060527849,0.1896,2631.3,2631.1,3.80062389]
[1750060528049,0.64847506,2631.3,2631.1,3.80062389]
[1750060528278,0.1896,2631.1,2631.0,3.80083618]
[1750060535088,7.24765063,2631.1,2630.9,3.80095412]
[1750060535369,0.1896,2630.9,2630.7,3.80119785]
[1750060535529,6.48475063,2630.8,2630.7,3.80119785]
[1750060535933,16.48475063,2630.8,2630.7,3.80119785]
[1750060536130,6.48475063,2630.8,2630.5,3.80148122]
[1750060536340,6.29515063,2630.6,2630.4,3.80163417]
[1750060536681,0.1896,2630.5,2630.3,3.80173818]
[1750060536984,6.29515063,2630.4,2630.3,3.80173818]
[1750060537642,6.29515063,2630.4,2630.2,3.80199001]
[1750060537643,6.29515063,2630.4,2630.0,0.9403]
[1750060537852,6.29515063,2630.4,2630.2,3.80195897]
[1750060538098,6.29515063,2630.4,2630.3,3.80184769]
[1750060538243,6.29515063,2630.4,2630.1,3.80209447]
[1750060538743,10.1896,2630.5,2630.4,3.80170316]
[1750060539883,0.1896,2630.5,2630.4,3.80170316]
[1750060540181,6.48475063,2630.5,2630.4,3.80170316]
[1750060541681,6.48475063,2630.5,2630.0,7.1833]
[1750060541883,6.29515063,2630.3,2630.0,3.99184981]
[1750060542084,6.29515063,2630.3,2630.2,3.80199224]
[1750060542657,0.1896,2630.2,2630.0,3.80223698]
[1750060542985,6.48475063,2630.2,2630.1,3.8021368]
[1750060549003,0.1896,2630.2,2630.1,3.8021368]
[1750060551003,6.48475063,2630.2,2630.1,3.8021368]
[1750060551776,0.1896,2630.2,2630.1,3.8021368]
[1750060553727,0.1896,2630.2,2630.0,3.80224175]
[1750060554018,6.29515063,2630.1,2630.0,3.80224175]
[1750060562641,0.1896,2630.2,2630.1,3.8021368]
[1750060562872,6.48475063,2630.4,2630.3,3.80176159]
[1750060565035,0.1896,2630.4,2630.3,3.80176159]
[1750060565253,6.48475063,2630.4,2630.3,3.80176159]
[1750060565752,7.39522354,2630.4,2630.3,3.80176159]
[1750060566087,6.48475063,2630.4,2630.3,3.80176159]
[1750060566595,7.39522354,2630.4,2630.3,3.80176159]
[1750060566887,7.39522354,2630.4,2630.2,3.80191192]
[1750060567045,0.91047291,2630.3,2630.2,3.80191192]
[1750060569583,0.91047291,2630.3,2630.1,3.80204645]
[1750060569785,0.1896,2630.4,2630.2,3.80199224]
[1750060569953,7.20725572,2630.3,2630.2,3.80199224]
[1750060578859,6.29515063,2630.3,2630.2,3.80199224]
[1750060579273,7.20727084,2630.3,2630.2,3.80199224]
[1750060583758,8.72805792,2630.3,2630.2,3.80199224]
[1750060587501,7.98830914,2630.3,2630.2,3.80199224]
[1750060588174,7.98830914,2630.3,2630.0,3.9918336]
[1750060588175,10.0,2630.2,2630.0,3.8021617]
[1750060588478,7.20720914,2630.1,2630.0,3.80228136]
[1750060590493,0.91205851,2630.2,2630.1,3.8021368]
[1750060590802,10.0,2630.3,2630.2,3.80199224]
[1750060591008,10.91110922,2630.3,2630.2,3.80199224]
[1750060595082,10.91087734,2630.3,2630.2,3.80199224]
[1750060595290,12.73273014,2630.3,2630.2,3.80199224]
[1750060597922,12.73273014,2630.3,2630.1,3.80206333]
[1750060598090,17.20602797,2630.2,2630.1,3.80206333]
[1750060600609,0.1896,2630.3,2630.2,3.80199224]
[1750060600813,1.10086311,2630.5,2630.4,3.80160645]
[1750060601191,7.39601374,2630.5,2630.1,3.8021368]
[1750060601386,0.91126311,2630.4,2630.3,3.80179609]
[1750060603428,0.91126311,2630.4,2630.2,3.80197294]
[1750060603429,0.91126311,2630.4,2630.0,0.1896]
[1750060603591,0.91126311,2630.3,2630.2,3.80191774]
[1750060603950,7.20641374,2630.3,2630.2,3.80191774]
[1750060605711,6.29515063,2630.3,2630.2,3.80191774]
[1750060606296,7.20620011,2630.3,2630.2,3.80191774]
[1750060607427,10.0,2630.2,2629.6,1.2311]
[1750060607625,6.29515063,2629.7,2629.6,0.4201]
[1750060607932,17.20620011,2629.7,2629.6,0.4201]
[1750060608302,17.20600206,2629.7,2629.6,0.4201]
[1750060609197,10.791,2629.4,2629.1,0.02]
[1750060609405,16.29515063,2629.2,2629.1,0.02]
[1750060609708,19.62950227,2629.2,2629.1,0.02]
[1750060610023,19.84317223,2629.2,2629.1,0.02]
[1750060610221,19.62950227,2629.2,2629.1,0.02]
[1750060610423,20.21699497,2629.2,2629.1,0.02]
[1750060610599,20.00332515,2629.2,2629.1,0.02]
[1750060611119,20.21699599,2629.2,2629.1,0.02]
[1750060611300,19.09247372,2629.2,2629.1,0.02]
[1750060614305,19.30626239,2629.2,2629.1,0.02]
[1750060614536,19.09247372,2629.2,2629.1,0.02]
[1750060614947,19.30629581,2629.2,2629.1,0.02]
[1750060615256,0.1896,2629.3,2629.1,0.02]
[1750060615414,0.1896,2629.3,2629.2,3.8034383]
[1750060620529,0.1896,2629.3,2629.1,0.02]
[1750060620724,6.48475063,2629.3,2629.1,0.02]
[1750060621153,6.48475063,2629.3,2629.2,3.8034383]
[1750060621552,0.1896,2629.3,2629.2,3.8034383]
[1750060626359,10.37930141,2629.4,2629.3,3.80329365]
[1750060626746,10.37930141,2629.4,2629.2,3.80337842]
[1750060627067,10.37930141,2629.4,2629.3,3.80329365]
[1750060627362,10.37930141,2629.4,2629.2,3.80336668]
[1750060628169,10.0,2629.4,2629.2,3.80336668]
[1750060628474,0.8181,2629.2,2629.1,0.02]
[1750060628881,0.8181,2629.2,2628.2,3.80479387]
[1750060628882,0.8181,2628.8,2628.2,3.80479387]
[1750060629029,6.29515063,2628.3,2628.1,0.02]
[1750060629236,10.0,2628.2,2628.1,0.02]
[1750060629831,10.0,2628.2,2628.1,3.82503024]
[1750060630147,10.0,2628.4,2628.2,3.80486148]
[1750060630345,10.21392725,2628.4,2628.2,3.80486148]
[1750060630559,10.0,2628.4,2628.2,3.80486148]
[1750060630733,10.0,2628.5,2628.3,3.8047407]
[1750060631081,10.0,2628.6,2628.4,3.80451908]
[1750060631260,10.8152,2628.7,2628.4,3.80451908]
[1750060631828,10.8152,2628.7,2628.3,3.80467216]
[1750060632143,13.83437434,2628.7,2628.2,3.80481892]
[1750060632468,8.95353571,2628.6,2628.2,3.80481892]
[1750060633145,9.16747973,2628.6,2628.2,3.80481892]
[1750060633468,8.95353571,2628.6,2628.2,3.80481892]
[1750060634669,9.16753105,2628.6,2628.2,3.80481892]
[1750060634860,8.95353571,2628.6,2628.2,3.80481892]
[1750060635382,0.1896,2628.5,2628.2,3.80481892]
[1750060637578,0.1896,2628.5,2628.3,3.80473909]
[1750060640689,0.35685053,2628.4,2628.3,3.80473909]
[1750060640987,10.1896,2628.5,2628.3,3.80473909]
[1750060641175,0.57097989,2628.4,2628.3,3.80473909]
[1750060641486,0.5709815,2628.4,2628.3,3.80473909]
[1750060641690,10.1896,2628.5,2628.3,3.80473909]
[1750060641911,0.21411516,2628.4,2628.3,3.80473909]
[1750060642211,0.35687455,2628.4,2628.3,3.80473909]
[1750060642406,0.57099557,2628.4,2628.2,3.8048225]
[1750060642570,0.21412999,2628.3,2628.1,3.82499029]
[1750060642775,10.1896,2628.5,2628.2,3.80474684]
[1750060643254,0.21419784,2628.4,2628.1,3.82499029]
[1750060643451,10.1896,2628.5,2628.3,3.80472291]
[1750060643679,0.21415136,2628.4,2628.3,3.80472291]
[1750060643889,0.57102489,2628.4,2628.2,3.80478748]
[1750060644069,10.1896,2628.5,2628.3,3.80472688]
[1750060644782,0.1896,2628.5,2628.4,3.80459595]
[1750060645091,0.21409108,2628.5,2628.4,3.80459595]
[1750060645269,0.21409108,2628.5,2628.3,4.65696526]
[1750060645270,0.1896,2628.7,2628.6,3.80419041]
[1750060645469,0.40369847,2628.7,2628.6,3.80419041]
[1750060645679,0.1896,2628.7,2628.6,3.80419041]
[1750060646189,0.38882878,2628.9,2628.8,3.80401704]
[1750060646389,0.1896,2628.8,2628.7,3.80410771]
[1750060646590,0.54646411,2628.8,2628.7,3.80410771]
[1750060646796,0.1896,2628.8,2628.7,3.80410771]
[1750060647290,0.40371021,2628.8,2628.7,3.80410771]
[1750060647491,0.1896,2628.8,2628.7,3.80410771]
[1750060647657,0.76043244,2628.8,2628.7,3.80410771]
[1750060647854,0.1896,2628.8,2628.7,3.80410771]
[1750060648070,0.40364903,2628.8,2628.7,3.80410771]
[1750060648271,0.1896,2628.8,2628.7,3.80410771]
[1750060648472,0.40364008,2628.8,2628.7,3.80410771]
[1750060648689,0.1896,2628.8,2628.7,3.80410771]
[1750060648893,0.40363938,2628.8,2628.7,3.80410771]
[1750060649094,0.1896,2628.8,2628.7,3.80410771]
[1750060649471,0.40361698,2628.8,2628.7,3.80410771]
[1750060649795,0.1896,2628.8,2628.5,3.80439673]
[1750060650010,0.1896,2628.8,2628.7,3.80416175]
[1750060651186,0.40357117,2628.8,2628.7,3.80416175]
[1750060651390,0.1896,2628.8,2628.7,3.80416175]
[1750060652189,0.76019132,2628.8,2628.7,3.80416175]
[1750060652366,0.1896,2628.8,2628.7,3.80416175]
[1750060653211,0.54614069,2628.8,2628.7,3.80416175]
[1750060653474,0.1896,2628.8,2628.7,3.80416175]
[1750060653896,0.76006163,2628.8,2628.7,3.80416175]
[1750060654098,0.1896,2628.8,2628.7,3.80416175]
[1750060655407,0.1896,2628.8,2628.7,4.57196175]
[1750060655567,10.0,2629.1,2628.9,3.80387234]
[1750060655767,0.2139167,2629.0,2628.9,3.80387234]
[1750060655980,13.37226964,2629.1,2628.9,3.80387234]
[1750060656179,6.31166795,2629.0,2628.9,3.80387234]
[1750060656405,7.22075912,2629.0,2628.9,3.80387234]
[1750060657693,7.577289,2629.0,2628.9,3.80387234]
[1750060658026,11.12300908,2629.0,2628.9,3.80387234]
[1750060658198,10.2139182,2629.0,2628.9,3.80387234]
[1750060658393,10.0,2629.0,2628.9,3.80387234]
[1750060658596,10.57044761,2629.0,2628.9,3.80387234]
[1750060658814,10.0,2629.0,2628.9,3.80387234]
[1750060660131,10.35650672,2629.0,2628.9,3.80387234]
[1750060660427,10.0,2629.0,2628.9,3.80387234]
[1750060660596,10.21390266,2629.0,2628.9,3.80387234]
[1750060660798,10.0,2629.0,2628.9,3.80387234]
[1750060660998,10.35650288,2629.0,2628.9,3.80387234]
[1750060661247,10.0,2629.0,2628.9,3.80387234]
[1750060667106,10.35632624,2629.0,2628.9,3.80387234]
[1750060667306,10.0,2629.0,2628.9,3.80387234]
[1750060667554,10.3563593,2629.0,2628.9,3.80387234]
[1750060667706,10.0,2629.0,2628.9,3.80387234]
[1750060668524,16.31166795,2629.0,2628.8,3.80395537]
[1750060669323,0.35647601,2628.9,2628.8,3.80395537]
[1750060669643,16.31166795,2629.0,2628.9,3.80387234]
[1750060669947,18.91116655,2629.0,2628.7,3.99371193]
[1750060670153,1.12448754,2628.9,2628.7,3.80411193]
[1750060670358,0.91060616,2628.9,2628.8,3.80401704]
[1750060670579,1.12450164,2628.9,2628.7,3.80408954]
[1750060670769,0.91060616,2628.9,2628.7,3.80408954]
[1750060671558,1.12452622,2628.9,2628.7,3.80408954]
[1750060671862,8.24037411,2628.9,2628.6,3.80422574]
[1750060672069,6.31166795,2628.7,2628.6,3.80422574]
[1750060673961,7.22286571,2628.8,2628.7,3.80416175]
[1750060676661,7.22286571,2628.8,2628.6,3.80424799]
[1750060676851,0.91119776,2628.7,2628.6,3.80424799]
[1750060678767,0.1896,2628.9,2628.8,3.80401704]
[1750060678973,1.10148285,2628.9,2628.8,3.80401704]
[1750060679272,1.10148285,2628.9,2628.7,3.8040897]
[1750060679435,0.91188285,2628.8,2628.7,3.8040897]
[1750060684674,6.50979358,2629.3,2628.7,3.8040897]
[1750060684675,0.8019,2629.7,2629.4,3.8031042]
[1750060684866,0.91150087,2629.6,2629.4,3.8031042]
[1750060685067,0.91150087,2629.5,2629.4,3.8031042]
[1750060685438,0.91150087,2629.6,2629.5,3.80300437]
[1750060686181,1.29491214,2629.6,2629.5,3.80300437]
[1750060686533,0.91150087,2629.6,2629.5,3.80300437]
[1750060686734,0.7916,2630.2,2629.5,0.03802845]
[1750060686958,0.91150087,2630.1,2629.9,3.80239425]
[1750060687199,0.91150087,2630.0,2629.9,3.80239425]
[1750060687389,10.91150087,2630.1,2630.0,3.80228136]
[1750060687555,3.1108811,2630.1,2629.9,3.80236213]
[1750060687754,0.37807924,2630.1,2629.9,3.80236213]
[1750060687973,10.0,2630.1,2629.9,3.80236213]
[1750060688172,10.91150087,2630.1,2629.9,3.80236213]
[1750060689462,10.0,2630.1,2629.9,3.80236213]
[1750060690196,10.19824112,2630.3,2629.5,6.34969256]
[1750060690422,0.90860656,2630.5,2630.0,3.80228136]
[1750060690699,6.31166795,2630.5,2630.3,3.80183276]
[1750060690995,0.6311668,2630.4,2630.3,3.80183276]
[1750060691299,10.0,2630.5,2630.4,3.80170316]
[1750060692170,0.02,2630.9,2630.4,3.80170316]
[1750060692497,0.02,2630.9,2630.8,3.80112513]
[1750060692704,0.23401395,2630.9,2630.8,3.80112513]
[1750060692860,0.23401891,2630.9,2630.8,3.80112513]
[1750060693061,0.02,2630.9,2630.8,3.80112513]
[1750060693266,18.04810475,2630.9,2630.8,3.80112513]
[1750060693466,18.26213092,2630.9,2630.8,3.80112513]
[1750060693663,18.04810475,2630.9,2630.7,3.80120507]
[1750060693995,0.21402697,2630.8,2630.7,3.80120507]
[1750060694198,18.04810475,2630.9,2630.7,3.80120507]
[1750060694424,0.21404825,2630.8,2630.7,3.80120507]
[1750060694568,18.04810475,2630.9,2630.7,3.80120507]
[1750060694767,18.23770475,2630.9,2630.7,3.80120507]
[1750060694993,0.21406789,2630.8,2630.7,3.80120507]
[1750060695203,18.62720587,2630.9,2630.7,3.80120507]
[1750060695384,0.2140688,2630.8,2630.7,3.80120507]
[1750060695590,18.62720587,2630.9,2630.7,3.80120507]
[1750060696172,18.23770475,2630.9,2630.7,3.80120507]
[1750060697614,11.9260368,2630.9,2630.8,3.80112513]
[1750060697824,11.9260368,2630.9,2630.7,3.80121037]
[1750060698129,12.14010273,2630.9,2630.7,3.80121037]
[1750060698314,11.9260368,2630.9,2630.7,3.80121037]
[1750060698615,12.14010445,2630.9,2630.7,3.80121037]
[1750060698813,11.9260368,2630.9,2630.7,3.80121037]
[1750060699019,11.9260368,2630.9,2630.7,3.80120676]
[1750060699203,12.51163309,2630.9,2630.7,3.80120676]
[1750060699405,8.27726805,2630.8,2630.2,0.7589]
[1750060699589,6.31166795,2630.6,2630.5,3.80146332]
[1750060699918,6.31166795,2630.6,2630.3,0.1896]
[1750060700078,6.31166795,2630.6,2630.4,3.80162504]
[1750060700285,0.8397268,2630.5,2630.3,3.80177401]
[1750060701946,0.8397268,2630.5,2630.1,3.80206521]
[1750060702092,6.31166795,2630.3,2630.0,3.80217166]
[1750060702431,0.1896,2630.2,2630.1,3.8021368]
[1750060703604,7.00784743,2630.3,2630.1,3.8021368]
[1750060703809,7.00784743,2630.3,2630.0,3.80221316]
[1750060704529,7.00784743,2630.3,2629.9,3.80238396]
[1750060704732,7.00784743,2630.3,2630.0,3.80217288]
[1750060704946,7.00784743,2630.3,2630.1,3.80213081]
[1750060705237,7.00784743,2630.3,2630.0,3.80221652]
[1750060705409,7.00784743,2630.3,2630.1,3.80213061]
[1750060705808,0.69617948,2630.3,2630.2,3.80199224]
[1750060706009,0.7904,2630.6,2630.0,0.78]
[1750060706226,0.7904,2630.6,2630.1,3.8021368]
[1750060706698,0.7904,2630.6,2630.4,3.801703]
[1750060707107,0.7904,2630.6,2630.1,3.80210495]
[1750060707438,10.0,2630.5,2630.3,3.80184699]
[1750060707641,11.7102068,2630.5,2630.3,3.80184699]
[1750060707803,11.7102068,2630.5,2630.2,3.80193563]
[1750060709316,11.7102068,2630.5,2630.2,3.80191596]
[1750060709728,11.7102068,2630.5,2630.3,3.80182948]
[1750060712053,11.7102068,2630.5,2630.2,3.80192054]
[1750060712257,1.88122748,2630.4,2630.2,3.80192054]
[1750060712758,2.07082748,2630.4,2630.2,3.80192054]
[1750060714116,2.07082748,2630.4,2630.3,3.80184769]
[1750060714517,2.07082748,2630.4,2630.2,3.801917]
[1750060715013,2.07082748,2630.4,2630.3,3.80184769]
[1750060716023,2.07082748,2630.4,2630.2,3.80192458]
[1750060716360,2.07082748,2630.4,2630.3,3.80184769]
[1750060718320,0.02,2630.9,2630.8,3.80112513]
[1750060718563,0.2096,2630.9,2630.8,3.80112513]
[1750060720262,0.02,2630.9,2630.8,3.80112513]
[1750060720428,0.02,2630.9,2630.8,3.83913476]
[1750060721744,0.02,2630.9,2630.8,3.80112513]
[1750060723765,0.02,2630.9,2630.7,0.1896]
[1750060723969,0.02,2630.9,2630.8,3.80112513]
[1750060725241,0.02,2630.9,2630.7,6.4196]
[1750060725469,0.02,2630.9,2630.7,3.80117153]
[1750060725632,0.02,2630.9,2630.8,3.80112513]
[1750060728336,0.02,2630.9,2630.8,3.99072513]
[1750060728836,0.02,2630.9,2630.8,4.02873004]
[1750060729259,0.02,2630.9,2630.8,3.99072513]
[1750060730651,0.02,2630.9,2630.8,10.02912513]
[1750060731461,0.02,2630.9,2630.8,3.80112513]
[1750060731664,0.02,2630.9,2630.7,3.80119821]
[1750060731996,0.02,2630.9,2630.8,3.80112513]
[1750060738295,0.02,2630.9,2630.8,4.57432513]
[1750060739175,0.02,2630.9,2630.8,4.76392513]
[1750060740359,0.02,2630.9,2630.6,3.80136723]
[1750060740611,10.0,2630.6,2630.4,3.80163051]
[1750060740773,6.31166795,2630.5,2630.3,3.80176443]
[1750060740975,6.31166795,2630.5,2630.3,3.80183538]
[1750060741179,6.31166795,2630.5,2630.2,3.80193527]
[1750060741376,8.05329137,2630.5,2630.1,6.4176]
[1750060741605,8.05329137,2630.5,2630.2,3.80197129]
[1750060741806,8.26742128,2630.5,2630.1,0.1896]
[1750060741967,8.26742645,2630.5,2630.1,0.1896]
[1750060742170,8.05332225,2630.5,2630.2,3.80197243]
[1750060742568,8.90946623,2630.5,2630.2,3.80197243]
[1750060742906,9.12357305,2630.5,2630.2,3.80197243]
[1750060743118,8.90946623,2630.5,2630.2,3.80197243]
[1750060743770,12.59779828,2630.5,2630.4,3.80170316]
[1750060744109,0.1896,2630.6,2630.5,3.80155863]
[1750060744273,0.02,2630.9,2630.8,3.80112513]
[1750060745398,0.02,2630.9,2630.7,3.8012102]
[1750060746111,6.31166795,2630.8,2630.5,10.02955863]
[1750060746310,0.91379484,2630.7,2630.5,10.02955863]
[1750060747100,0.1896,2630.7,2630.5,10.02955863]
[1750060747795,1.0062,2630.7,2630.6,3.80141412]
[1750060747967,1.0062,2630.7,2630.5,6.228]
[1750060748172,1.0062,2630.7,2630.4,3.80161381]
[1750060748375,1.3156,2630.3,2629.0,15.59029047]
[1750060748610,10.7656,2630.1,2629.4,3.80312227]
[1750060748794,1.6758804,2630.1,2629.8,3.8024947]
[1750060748995,0.7656,2630.1,2629.8,3.8024947]
[1750060749788,0.7656,2630.1,2629.9,3.80240793]